Cogmind - Beta 14 @@@ ROGUE MODE // 2024.11.03 @ 11:55:47 Player: star Result: Destroyed by 1N-20M(R) with Subdweller Beam Cannon Performance ------------- Evolutions (0) 0 Regions Visited (2) 400 Robots Destroyed (11) 55 Value Destroyed (380) 380 Prototype IDs (0) 0 Alien Tech Used (0) 0 Bonus (0) 0 TOTAL SCORE: 835 Bonus ------- None Cogmind --------- Core Integrity 0/250 Matter 300/300 Energy 204/250 System Corruption 0% Temperature Cool (9) Movement Rolling (90) Location -10/Subcaves Parts ------- > --- POWER (1) -------- Ion Engine > --- PROPULSION (2) --- Wheel Compact Wheel > --- UTILITY (2) ------ Disposable Heat Sink Small Storage Unit > --- WEAPON (2) ------- Subdweller Laser Subdweller Laser > --- INVENTORY (8) ---- Cargo Legs Disposable Heat Sink High-capacity Matter Pod (200) Assault Rifle Subdweller Shrapnel Launcher Multitool Peak State ------------ > --- POWER ------------ Light Ion Engine > --- PROPULSION ------- Compact Wheel Subdweller Monowheel > --- UTILITY ---------- Disposable Heat Sink Small Storage Unit > --- WEAPON ----------- Subdweller Laser Enhanced Flamer > --- INVENTORY -------- Ion Engine Cargo Legs Wheel High-capacity Matter Pod Medium Laser Assault Rifle Light Assault Rifle [Rating: 14] Favorites ----------- Power Ion Engine Engine Ion Engine Propulsion Compact Wheel Wheel Compact Wheel Utility Small Storage Unit Device Disposable Heat Sink Storage Small Storage Unit Weapon Subdweller Laser Energy Gun Subdweller Laser Ballistic Gun Assault Rifle Special Weapon Enhanced Flamer Build | -11 -10 -10 ------- Run | Yrd Mat Sub Slots Evolved . | . . . Power . | . . . Propulsion . | . . . Utility . | . . . Weapon . | . . . Parts Attached 20 | 6 1 13 Power 2 | 1 . 1 Engine 2 | 1 . 1 Core . | . . . Reactor . | . . . Propulsion 7 | 2 1 4 Treads . | . . . Leg . | . . . Wheel 7 | 2 1 4 Hover . | . . . Flight . | . . . Utility 4 | 1 . 3 Device 3 | . . 3 Storage 1 | 1 . . Processor . | . . . Hackware . | . . . Protection . | . . . Artifact . | . . . Weapon 7 | 2 . 5 Energy Gun 4 | 1 . 3 Energy Cannon . | . . . Ballistic Gun 2 | 1 . 1 Ballistic Cannon . | . . . Launcher . | . . . Special Weapon 1 | . . 1 Impact Weapon . | . . . Slashing Weapon . | . . . Piercing Weapon . | . . . Special Melee Weapon . | . . . Unidentified Prototypes . | . . . Parts Lost 4 | . . 4 Power 1 | . . 1 Propulsion 1 | . . 1 Utility 1 | . . 1 Weapon 1 | . . 1 Highest Loss Streak 2 | . . 2 To Critical Strikes . | . . . Average Slot Usage (%) 91 | . 85 93 Engine 14 | . 14 14 Wheel 27 | . 28 26 Device 6 | . . 8 Storage 14 | . 14 14 Energy Gun 14 | . 14 14 Ballistic Gun 5 | . 14 1 Special Weapon 8 | . . 12 Peak Build Rating 14 | 6 6 14 Average Rating 10 | 4 6 12 On Entrance 4 | . 6 6 Naked Turns . | . . . Heaviest Build 17 | 12 12 17 Greatest Support 36 | 26 32 36 Greatest Overweight (x) 2 | 2 . 1 Average Overweight (x) . | . . . Largest Inventory Capacity 8 | 8 8 8 Average Capacity 7 | 7 8 8 Most Carried 8 | 2 4 8 Average Carried 6 | . 3 7 Final Capacity 8 | 8 8 8 Final Carried 7 | 1 4 7 Class Distribution -------------------- 94% | Mutant 5% | Scavenger-Mutant Dominant Class ---------------- Mutant | -10/Materials Mutant | -10/Subcaves Resources | -11 -10 -10 ----------- Run | Yrd Mat Sub Matter Collected 617 | 180 32 405 Remotely . | . . . Salvage Created 380 | . 32 348 Parts 27 | . 3 24 Haulers Intercepted . | . . . Recyclers Shooed . | . . . Parts Field Recycled . | . . . Retrieved Matter . | . . . Parts Self-Destructed 16 | . . 16 Prevented . | . . . Kills | -11 -10 -10 ------- Run | Yrd Mat Sub Combat Hostiles Destroyed 11 | . 2 9 Guns 6 | . 2 4 Cannons 4 | . . 4 Classes Destroyed 2 | . 1 1 Swarmer 2 | . 2 . Subdweller 9 | . . 9 Best Kill Streak 2 | . 2 2 Combat Bots Only 2 | . 2 2 Max Kills in Single Turn 1 | . 1 1 Gunslinging . | . . . Exploded . | . . . Melee . | . . . Uniques/NPCs Destroyed . | . . . Combat | -11 -10 -10 -------- Run | Yrd Mat Sub Hostile Shots Fired 34 | . 3 31 Missed 10 | . . 10 Damage Taken 601 | . 25 576 Core 260 | . 7 253 Absorbed by Shields . | . . . Core Remaining (%) 100 | 100 . . Volleys Fired 47 | . 2 45 Largest 2 | . 2 2 Hottest 140 | . 70 140 Shots Fired 75 | . 4 71 Gun 57 | . 4 53 Cannon . | . . . Launcher . | . . . Special 18 | . . 18 Kinetic 9 | . 2 7 Thermal 66 | . 2 64 Explosive . | . . . Electromagnetic . | . . . Robot Hit Streak 14 | . 2 14 Robot Miss Streak 2 | . . 2 Penetration Max . | . . . Secondary Targets . | . . . Shots Hit Robots 40 | . 2 38 Core Hits 19 | . 2 17 Critical Kills . | . . . Critical Parts Destroyed . | . . . Critical Strikes 3 | . . 3 Burn 3 | . . 3 Melee Attacks . | . . . Impact . | . . . Slashing . | . . . Piercing . | . . . Sneak Attacks . | . . . Combat Hostiles . | . . . Follow-up Attacks . | . . . Damage Inflicted 604 | . 25 579 Guns 483 | . 25 458 Cannons . | . . . Explosions . | . . . Melee . | . . . Ramming . | . . . Kinetic 59 | . . 59 Thermal 545 | . 25 520 Explosive . | . . . Electromagnetic . | . . . Impact . | . . . Slashing . | . . . Piercing . | . . . Highest Corruption . | . . . Average Corruption . | . . . Corruption Purged . | . . . Corruption Blocked . | . . . Overload Shots . | . . . Overflow Damage . | . . . Projectiles . | . . . Explosions . | . . . Melee . | . . . Knockbacks . | . . . Impact . | . . . Kinetic . | . . . Secondary . | . . . Self-Inflicted Damage . | . . . Shots . | . . . Rammed . | . . . Targets Rammed . | . . . Kicked . | . . . Crushed . | . . . Highest Temperature 36 | . 18 36 Average Temperature 12 | . 10 13 Received Heat Transfer 84 | . . 84 Siege Activations . | . . . Robots Corrupted . | . . . Combat Hostiles . | . . . Parts Fried . | . . . Impact Corruptions . | . . . Robots Melted 1 | . . 1 Combat Hostiles 1 | . . 1 Parts Melted 3 | . . 3 Heat Transferred 1982 | . 74 1908 Parts Sabotaged . | . . . Parts Stolen . | . . . Parts Stripped . | . . . Power Chain Reactions . | . . . Alert | -11 -10 -10 ------- Run | Yrd Mat Sub Peak Influence 80 | . 80 . Initial . | . . . Average 59 | . 68 . Maximum Alert Level . | . . . Low Security (%) 100 | 100 100 . Level 1 . | . . . Level 2 . | . . . Level 3 . | . . . Level 4 . | . . . Level 5 . | . . . High Security . | . . . Max Security . | . . . Squads Dispatched . | . . . Investigation . | . . . Extermination . | . . . Reinforcement . | . . . Assault . | . . . Garrison . | . . . Intercept . | . . . Searches Triggered . | . . . Construction Impeded . | . . . Haulers Reinforced . | . . . Active Scanning Responses . | . . . Cargo Convoy Interrupts . | . . . Stealth | -11 -10 -10 --------- Run | Yrd Mat Sub Distress Signals . | . . . Communications Jammed . | . . . Distress Signals . | . . . Times Spotted 14 | . 3 11 Peak Tracking Total 3 | . 3 2 Tactical Retreats 1 | . 1 . Traps | -11 -10 -10 ------- Run | Yrd Mat Sub Traps Triggered 1 | . . 1 Indirectly . | . . . Trap Hack Attempts . | . . . Triggered . | . . . Disarmed . | . . . Reprogrammed . | . . . Reused . | . . . Traps Extracted . | . . . Installed . | . . . Triggered . | . . . Machines | -11 -10 -10 ---------- Run | Yrd Mat Sub Machines Disabled . | . . . Max in Single Turn . | . . . Machines Repaired . | . . . Machines Dismantled . | . . . Machines Sabotaged . | . . . Overloaded Fab Kills . | . . . Hacking | -11 -10 -10 --------- Run | Yrd Mat Sub Machines Accessed . | . . . Terminals . | . . . Fabricators . | . . . Repair Stations . | . . . Recycling Units . | . . . Scanalyzers . | . . . Garrison Access . | . . . Total Hacks . | . . . Successful . | . . . Failed . | . . . Catastrophic . | . . . Database Lockouts . | . . . Manual . | . . . Terminals . | . . . Fabricators . | . . . Repair Stations . | . . . Recycling Units . | . . . Scanalyzers . | . . . Garrison Access . | . . . Terminal Hacks . | . . . Fabricator Hacks . | . . . Repair Station Hacks . | . . . Recycling Unit Hacks . | . . . Scanalyzer . | . . . Garrison Access Hacks . | . . . Unauthorized Hacks . | . . . Terminals . | . . . Fabricators . | . . . Repair Stations . | . . . Recycling Units . | . . . Scanalyzers . | . . . Garrison Access . | . . . Data Cores Recovered . | . . . Used . | . . . Hacking Detections . | . . . Full Trace Events . | . . . Feedback Events . | . . . Feedback Blocked . | . . . Robot Schematics Acquired . | . . . Robots Built . | . . . Authchips . | . . . Time . | . . . Total Robot Build Rating . | . . . Part Schematics Acquired . | . . . Parts Built . | . . . Authchips . | . . . Time . | . . . Total Part Build Rating . | . . . Parts Repaired . | . . . Time . | . . . Parts Recycled . | . . . Recycled Matter . | . . . Retrieved Matter . | . . . Retrieved Components . | . . . Parts Scanalyzed . | . . . Part Schematics Acquired . | . . . Parts Damaged . | . . . Bothacking | -11 -10 -10 ------------ Run | Yrd Mat Sub Used RIF Installer . | . . . Robots Hacked . | . . . Non-combat . | . . . Combat . | . . . Robot Hacks Applied . | . . . Relay Couplers Released . | . . . Fabnet Peak Effective % . | . . . Robots Rewired . | . . . Allies Hacked . | . . . Hacks Repelled . | . . . Allies | -11 -10 -10 -------- Run | Yrd Mat Sub Total Allies . | . . . Largest Group . | . . . Highest-Rated Group . | . . . Highest-Rated Ally . | . . . Total Orders . | . . . Ally Attacks . | . . . Total Damage . | . . . Kills . | . . . Allies Corrupted . | . . . Allies Melted . | . . . Intel | -11 -10 -10 ------- Run | Yrd Mat Sub Robot Analysis Total . | . . . Derelict Logs Recovered 1 | . . 1 Drone Launches . | . . . Drone Recoveries . | . . . Exploration | -11 -10 -10 ------------- Run | Yrd Mat Sub Turns Passed 1092 | 42 267 783 Spaces Moved 611 | 34 54 523 Core 6 | 6 . . Treads . | . . . Legs . | . . . Wheels 605 | 28 54 523 Hover . | . . . Flight . | . . . Fastest Speed 50 | 50 90 90 Average Speed 102 | 92 95 103 Slowest Speed 150 | 150 100 115 Overloaded Moves . | . . . Propulsion Burnouts . | . . . Robots Hopped . | . . . Cave-ins Triggered . | . . . Exploration Rate (%) 16 | 3 11 35 Regions Visited 2 Branch Regions 1 Pre-discovered Areas . | . . . Known Exits Taken . | . . . Unknown Exits Taken 2 | 1 1 . Scrap Searched 7 | . . 7 Spaces Dug . | . . . Terrain Destroyed . | . . . Melee . | . . . Projectile . | . . . AOE . | . . . Terrain Rammed . | . . . Walls Destroyed . | . . . Machines Disabled . | . . . Actions | -11 -10 -10 --------- Run | Yrd Mat Sub Total 986 | 41 264 681 Wait 293 | . 205 88 Move 609 | 33 53 523 Hop . | . . . Pick Up 10 | 2 3 5 Fast Attach 8 | 5 . 3 Attach 3 | 1 . 2 Detach . | . . . Swap 9 | . 1 8 Drop 7 | . . 7 Fire 47 | . 2 45 Melee . | . . . Ram . | . . . Kick . | . . . Crush . | . . . Escape Stasis . | . . . Rewire . | . . . Trap . | . . . Miscellaneous . | . . . Route ------- -11/Scrapyard -10/Materials -10/Subcaves (discovered 1 exit: [*Mat]) History --------- Turn | Location | Event 14 | -11/Scrapyard | Discovered new exit (range 14) 43 | -11/Scrapyard | Entered Materials 255 | -10/Materials | Discovered new exit (range 4) 310 | -10/Materials | Entered Subcaves 314 | -10/Subcaves | Build established: Mutant 340 | -10/Subcaves | A Subdweller sparked back to life 340 | -10/Subcaves | A Subdweller sparked back to life 340 | -10/Subcaves | A Subdweller sparked back to life 342 | -10/Subcaves | Found Prototype Leg 346 | -10/Subcaves | Core integrity fell below 50% 826 | -10/Subcaves | Shifting Twisted Machinery released Sub. Power Source 864 | -10/Subcaves | Shifting Twisted Machinery released Sub. Laser 866 | -10/Subcaves | Shifting Twisted Machinery released Sub. Machine Gun 866 | -10/Subcaves | Shifting Twisted Machinery released Humpback 960 | -10/Subcaves | Discovered new exit (range 7) 999 | -10/Subcaves | Disturbed a concealed Subdweller 1088 | -10/Subcaves | Disturbed a concealed Subdweller 1089 | -10/Subcaves | Core integrity fell below 20% 1093 | -10/Subcaves | Destroyed by 1N-20M(R) with Subdweller Beam Cannon Last Messages --------------- 01019_ Found 59 Matter. 01020_ Searching scrap... 01020_ Found Sub. Shrapnel Launcher. 01020_ Found 48 Matter. 01021_ Searching scrap... 01021_ Found Mak. System Restoration Module. 01021_ Found Mak. Sword. 01021_ Found 36 Matter. 01067_ Acquired Wheel. 01069_ Acquired 10 matter. 01085_ Searching scrap... 01085_ Found Battle Rifle. 01085_ Found Sub. Machine Gun. 01085_ Found 69 Matter. 01087_ Searching scrap... 01087_ Found Enh. Flamer. 01087_ Found 38 Matter. 01088_ 1N-20M(R) angrily emerges from the Twisted Machinery. 01091_ Enh. Flamer destroyed. 01093_ Acquired 10 matter. Map ----- +----------------------------------------------------+ | ??# ####?????# ### " ## ## ##?????????? | | ??# """"" #?????#### ### #?????????? | | ??# """"""#??????## #??????????? | | ??# "#??????# #??????????????? | | ??# #??????# ## #??????????????? | | ??# %#????????## ##?????????????????? | | ??# ##??######### % ! #??????????????????? | | #### ####???#%## # ## !% #??????????????????? | | %## ###???## ###### #??????????????????? | | %#" ##### # ##???##&&& #??????????????????? | | & ## # #### #???# %%###??????????????????? | | #" #?## #???##&!#### ?????????????? | | ## # ##### ##??##% """ ?????????????? | | ?# #####?## #### " """ ???????????? | | ?## ##?????# " ???????????? | | ??### ######## ##& [ "### ###???????????? | | ???# # "## # ##?? #?????????????? | | ???## #### < "%######???? ????????????? | | ???# ### ## " # ##????????# #??????????? | | ???# ## ####### ####??????## #??????????? | | ???## ## ##?????## ##???????# #??????????? | | ???# ##??????### ""##???????? ##??????????? | | ??# #####???????#" """ """"???????#???????????? | | ?# #???????????# [%#### "??????????????????? | | # #???????????# ##[<<##""""?????????????????? | | # #???????????# #<